fUST/lending_fUST_20241228
["ID","MTS","AMOUNT","RATE_DAILY","PERIOD"]
[346891793,1735344555605,-500.0,0.00010276,2]
[346891794,1735344555628,-500.0,0.00010276,2]
[346891795,1735344555651,-500.0,0.00010276,2]
[346891796,1735344555675,-281.46,0.00010277,2]
[346891797,1735344555697,-329.2227353,0.00010277,2]
[346891798,1735344555720,-574.16,0.00010277,2]
[346891799,1735344555747,-500.0,0.00010277,2]
[346891800,1735344555770,-500.0,0.00010277,2]
[346891801,1735344555797,-500.0,0.00010277,2]
[346891802,1735344555822,-500.0,0.00010277,2]
[346891803,1735344555848,-500.0,0.00010277,2]
[346891804,1735344555871,-500.0,0.00010277,2]
[346891805,1735344555892,-500.0,0.00010277,2]
[346891806,1735344555914,-500.0,0.00010277,2]
[346891807,1735344555937,-500.0,0.00010277,2]
[346891808,1735344555960,-500.0,0.00010277,2]
[346891809,1735344555983,-500.0,0.00010277,2]
[346891810,1735344556007,-500.0,0.00010277,2]
[346891811,1735344556031,-500.0,0.00010277,2]
[346891812,1735344556054,-500.0,0.00010277,2]
[346891813,1735344556077,-500.0,0.00010277,2]
[346891814,1735344556099,-500.0,0.00010277,2]
[346891815,1735344556122,-500.0,0.00010277,2]
[346891816,1735344556145,-1070.89,0.00010277,2]
[346891817,1735344556170,-500.0,0.00010277,2]
[346891818,1735344556193,-500.0,0.00010277,2]
[346891819,1735344556295,-500.0,0.00010277,2]
[346891820,1735344556319,-500.0,0.00010277,2]
[346891821,1735344556343,-500.0,0.00010277,2]
[346891822,1735344556367,-500.0,0.00010277,2]
[346891823,1735344556390,-500.0,0.00010277,2]
[346891824,1735344556413,-500.0,0.00010278,2]
[346891825,1735344556444,-500.0,0.00010372,2]
[346891826,1735344556466,-500.50710181,0.00010372,2]
[346891827,1735344556492,-2621.8,0.0001045,2]
[346891828,1735344556514,-500.0,0.00010531,2]
[346891829,1735344556536,-500.0,0.00010531,2]
[346891830,1735344556557,-536.63580777,0.00010531,2]
[346891831,1735344556582,-500.0,0.00010531,2]
[346891832,1735344556607,-500.0,0.00010549,2]
[346891833,1735344556630,-500.0,0.00010549,2]
[346891834,1735344556656,-500.0,0.00010549,2]
[346891835,1735344556680,-500.0,0.00010549,2]
[346891836,1735344556702,-500.0,0.00010549,2]
[346891837,1735344556723,-500.0,0.0001055,2]
[346891838,1735344556746,-849.59,0.0001055,2]
[346891839,1735344556768,-500.0,0.0001055,2]
[346891840,1735344556788,-500.0,0.0001055,2]
[346891841,1735344556812,-500.0,0.0001055,2]
[346891842,1735344556835,-500.0,0.0001055,2]
[346891843,1735344556856,-500.0,0.0001055,2]
[346891844,1735344556879,-500.0,0.0001055,2]
[346891845,1735344556902,-500.0,0.0001055,2]
[346891846,1735344556926,-500.0,0.0001055,2]
[346891847,1735344556949,-500.0,0.0001055,2]
[346891848,1735344556971,-500.0,0.0001055,2]
[346891849,1735344556994,-500.0,0.0001055,2]
[346891850,1735344557018,-10865.71,0.0001055,2]
[346891851,1735344557039,-1028.14,0.0001055,2]
[346891852,1735344557062,-500.0,0.0001055,2]
[346891853,1735344557084,-632.93196552,0.0001055,2]
[346891854,1735344557106,-500.0,0.0001055,2]
[346891855,1735344557134,-500.0,0.0001055,2]
[346891856,1735344557156,-500.0,0.0001055,2]
[346891857,1735344557180,-320.13,0.0001055,2]
[346891858,1735344557202,-500.0,0.0001055,2]
[346891859,1735344557224,-500.0,0.0001055,2]
[346891860,1735344557246,-500.0,0.0001055,2]
[346891861,1735344557267,-500.0,0.0001055,2]
[346891862,1735344557288,-322.1854127,0.0001055,2]
[346891863,1735344557310,-598.79023601,0.0001055,2]
[346891864,1735344557333,-500.0,0.0001055,2]
[346891865,1735344557354,-575.12,0.0001055,2]
[346891866,1735344557376,-500.0,0.0001055,2]
[346891867,1735344557398,-500.0,0.0001055,2]
[346891868,1735344557419,-376.59064294,0.0001055,2]
[346891869,1735344557443,-500.0,0.00010551,2]
[346891870,1735344557464,-500.0,0.00010551,2]
[346891871,1735344557486,-500.0,0.00010551,2]
[346891872,1735344557507,-500.0,0.00010551,2]
[346891873,1735344557528,-500.0,0.00010551,2]
[346891874,1735344557548,-361.48,0.00010551,2]
[346891875,1735344557572,-500.0,0.00010551,2]
[346891876,1735344557592,-500.0,0.00010551,2]
[346891877,1735344557613,-500.0,0.00010551,2]
[346891878,1735344557635,-357.36,0.00010551,2]
[346891879,1735344557659,-500.0,0.00010551,2]
[346891880,1735344557681,-500.0,0.00010551,2]
[346891881,1735344557702,-500.0,0.00010551,2]
[346891882,1735344557723,-500.0,0.00010551,2]
[346891883,1735344557746,-500.0,0.00010551,2]
[346891884,1735344557766,-500.0,0.00010551,2]
[346891885,1735344557786,-1070.89,0.00010551,2]
[346891886,1735344557808,-579.75,0.00010551,2]
[346891887,1735344557830,-500.0,0.00010551,2]
[346891888,1735344557852,-500.0,0.00010551,2]
[346891889,1735344557873,-500.0,0.00010552,2]
[346891890,1735344557909,500.0,0.00010004,2]
[346891891,1735344557959,500.0,0.00010278,2]
[346891892,1735344558020,500.0,0.00010552,2]
[346891893,1735344558236,-420.0,0.000107,2]
[346891894,1735344558259,-2621.8,0.00010724,2]
[346891895,1735344558280,-490.83938498,0.00010742,2]
[346891896,1735344558303,-500.0,0.00010823,2]
[346891897,1735344558325,-500.0,0.00010823,2]
[346891898,1735344558346,-500.0,0.00010823,2]
[346891899,1735344558369,-500.0,0.00010823,2]
[346891900,1735344558391,-500.0,0.00010823,2]
[346891901,1735344558412,-500.0,0.00010824,2]
[346891902,1735344558437,-849.59,0.00010824,2]
[346891903,1735344558458,-500.0,0.00010824,2]
[346891904,1735344558481,-500.0,0.00010824,2]
[346891905,1735344558503,-500.0,0.00010824,2]
[346891906,1735344558526,-195.65621727,0.00010824,2]
[346891907,1735344558547,-500.0,0.00010824,2]
[346891908,1735344558572,-500.0,0.00010824,2]
[346891909,1735344558594,-500.0,0.00010824,2]
[346891910,1735344558617,-500.0,0.00010824,2]
[346891911,1735344558640,-1028.14,0.00010824,2]
[346891912,1735344558661,-500.0,0.00010824,2]
[346891913,1735344558684,-500.0,0.00010824,2]
[346891914,1735344558707,-500.0,0.00010824,2]
[346891915,1735344558730,-500.0,0.00010824,2]
[346891916,1735344558844,-292.42,0.00010824,2]
[346891917,1735344558868,-500.0,0.00010824,2]
[346891918,1735344558891,-500.0,0.00010824,2]
[346891919,1735344558914,-500.0,0.00010824,2]
[346891920,1735344558939,-500.0,0.00010824,2]
[346891921,1735344558963,-500.0,0.00010825,2]
[346891922,1735344558987,-500.0,0.00010825,2]
[346891923,1735344559010,-500.0,0.00010825,2]
[346891924,1735344559033,-500.0,0.00010825,2]
[346891925,1735344559056,-564.18,0.00010825,2]
[346891926,1735344559079,-500.0,0.00010825,2]
[346891927,1735344559103,-428.35,0.00010825,2]
[346891928,1735344559125,-500.0,0.00010825,2]
[346891929,1735344559147,-500.0,0.00010825,2]
[346891930,1735344559169,-500.0,0.00010825,2]
[346891931,1735344559194,-500.0,0.00010825,2]
[346891932,1735344559217,-1070.89,0.00010825,2]
[346891933,1735344559239,-500.0,0.00010825,2]
[346891934,1735344559262,-500.0,0.00010825,2]
[346891935,1735344559283,-500.0,0.00010826,2]
[346891936,1735344559305,-500.0,0.00010826,2]
[346891937,1735344559325,-741.80000864,0.00010861,2]
[346891938,1735344559344,-1000.0,0.0001092,2]
[346891939,1735344559366,-2735.79,0.00010998,2]
[346891940,1735344559387,-2621.8,0.00010998,2]
[346891941,1735344559408,-594.83893025,0.00011079,2]
[346891942,1735344559431,-1000.0,0.00011079,2]
[346891943,1735344559453,-500.0,0.00011097,2]
[346891944,1735344559474,-500.0,0.00011097,2]
[346891945,1735344559495,-500.0,0.00011097,2]
[346891946,1735344559517,-500.0,0.00011097,2]
[346891947,1735344559539,-500.0,0.00011097,2]
[346891948,1735344559560,-500.0,0.00011098,2]
[346891949,1735344559583,-849.59,0.00011098,2]
[346891950,1735344559603,-268.0129005,0.00011098,2]
[346891951,1735344559625,-500.0,0.00011098,2]
[346891952,1735344559647,-500.0,0.00011098,2]
[346891953,1735344559668,-500.0,0.00011098,2]
[346891954,1735344559691,-500.0,0.00011098,2]
[346891955,1735344559714,-500.0,0.00011098,2]
[346891956,1735344559737,-1028.14,0.00011098,2]
[346891957,1735344559757,-500.0,0.00011098,2]
[346891958,1735344559779,-500.0,0.00011098,2]
[346891959,1735344559801,-500.0,0.00011098,2]
[346891960,1735344559822,-500.0,0.00011098,2]
[346891961,1735344559843,-500.0,0.00011098,2]
[346891962,1735344559864,-500.0,0.00011098,2]
[346891963,1735344559885,-500.0,0.00011098,2]
[346891964,1735344559906,-500.0,0.00011098,2]
[346891965,1735344559928,-500.0,0.00011099,2]
[346891966,1735344559948,-500.0,0.00011099,2]
[346891967,1735344559970,-500.0,0.00011099,2]
[346891968,1735344559991,-509.69,0.00011099,2]
[346891969,1735344560012,-500.0,0.00011099,2]
[346891970,1735344560032,-500.0,0.00011099,2]
[346891971,1735344560053,-500.0,0.00011099,2]
[346891972,1735344560073,-500.0,0.00011099,2]
[346891973,1735344560094,-1070.89,0.00011099,2]
[346891974,1735344560115,-500.0,0.00011099,2]
[346891975,1735344560135,-500.0,0.00011099,2]
[346891976,1735344560156,-500.0,0.000111,2]
[346891977,1735344560179,-500.0,0.000111,2]
[346891978,1735344560199,-500.0,0.00011209,2]
[346891979,1735344560222,-2735.79,0.00011272,2]
[346891980,1735344560244,-2621.8,0.00011272,2]
[346891981,1735344560267,-500.0,0.00011371,2]
[346891982,1735344560295,-500.0,0.00011371,2]
[346891983,1735344560318,-500.0,0.00011371,2]
[346891984,1735344560340,-500.0,0.00011371,2]
[346891985,1735344560362,-500.0,0.00011371,2]
[346891986,1735344560383,-315.9,0.00011372,2]
[346891987,1735344560405,-849.59,0.00011372,2]
[346891988,1735344560427,-500.0,0.00011372,2]
[346891989,1735344560448,-389.06920518,0.00011372,2]
[346891990,1735344560469,-500.0,0.00011372,2]
[346891991,1735344560490,-500.0,0.00011372,2]
[346891992,1735344560512,-500.0,0.00011372,2]
[346891993,1735344560533,-1028.14,0.00011372,2]
[346891994,1735344560554,-500.0,0.00011372,2]
[346891995,1735344560580,-500.0,0.00011372,2]
[346891996,1735344560602,-500.0,0.00011372,2]
[346891997,1735344560624,-500.0,0.00011372,2]
[346891998,1735344560661,-500.0,0.00011372,2]
[346891999,1735344560685,-500.0,0.00011372,2]
[346892000,1735344560707,-500.0,0.00011372,2]
[346892001,1735344560728,-500.0,0.00011372,2]
[346892002,1735344560750,-500.0,0.00011373,2]
[346892003,1735344560772,-500.0,0.00011373,2]
[346892004,1735344560793,-500.0,0.00011373,2]
[346892005,1735344560814,-500.0,0.00011373,2]
[346892006,1735344560835,-500.0,0.00011373,2]
[346892007,1735344560856,-500.0,0.00011373,2]
[346892008,1735344560877,-500.0,0.00011373,2]
[346892009,1735344560898,-1070.89,0.00011373,2]
[346892010,1735344560920,-500.0,0.00011373,2]
[346892011,1735344560942,-500.0,0.00011373,2]
[346892012,1735344560964,-365.95,0.00011373,2]
[346892013,1735344560986,-500.0,0.00011373,2]
[346892014,1735344561008,-2735.79,0.00011546,2]
[346892015,1735344561029,-500.0,0.00011563,2]
[346892016,1735344561050,-500.0,0.00011573,2]
[346892017,1735344561072,-500.0,0.00011645,2]
[346892018,1735344561094,-500.0,0.00011645,2]
[346892019,1735344561118,-500.0,0.00011645,2]
[346892020,1735344561141,-500.0,0.00011645,2]
[346892021,1735344561166,-500.0,0.00011645,2]
[346892022,1735344561189,-849.59,0.00011646,2]
[346892023,1735344561213,-500.0,0.00011646,2]
[346892024,1735344561353,-500.0,0.00011646,2]
[346892025,1735344561376,-500.0,0.00011646,2]
[346892026,1735344561402,-500.0,0.00011646,2]
[346892027,1735344561425,-1028.14,0.00011646,2]
[346892028,1735344561448,-500.0,0.00011646,2]
[346892029,1735344561471,-500.0,0.00011646,2]
[346892030,1735344561493,-500.0,0.00011646,2]
[346892031,1735344561514,-500.0,0.00011646,2]
[346892032,1735344561535,-500.0,0.00011646,2]
[346892033,1735344561556,-500.0,0.00011646,2]
[346892034,1735344561585,-500.0,0.00011646,2]
[346892035,1735344561606,-500.0,0.00011646,2]
[346892036,1735344561628,-500.0,0.00011647,2]
[346892037,1735344561650,-500.0,0.00011647,2]
[346892038,1735344561671,-500.0,0.00011647,2]
[346892039,1735344561694,-500.0,0.00011647,2]
[346892040,1735344561715,-500.0,0.00011647,2]
[346892041,1735344561738,-263.64,0.00011647,2]
[346892042,1735344561758,-500.0,0.00011647,2]
[346892043,1735344561779,-1070.89,0.00011647,2]
[346892044,1735344561799,-500.0,0.00011647,2]
[346892045,1735344561822,-500.0,0.00011647,2]
[346892046,1735344561949,500.0,0.00011647,2]
[346892047,1735344562225,500.0,9.728e-05,2]
[346892048,1735344562255,500.0,9.728e-05,2]
[346892049,1735344562285,500.0,0.00010002,2]
[346892050,1735344562313,500.0,9.728e-05,2]
[346892051,1735344562363,500.0,0.00010276,2]
[346892052,1735344564713,500.0,9.727e-05,2]
[346892053,1735344564987,500.0,0.00010001,2]
[346892054,1735344565229,360.31874826,0.00010275,2]
[346892055,1735344567444,500.0,9.727e-05,2]
[346892056,1735344567708,500.0,0.00010001,2]
[346892057,1735344567965,500.0,0.00010275,2]
[346892058,1735344568264,500.0,0.00010549,2]
[346892059,1735344568399,500.0,9.728e-05,2]
[346892060,1735344568528,500.0,0.00010823,2]
[346892061,1735344568806,500.0,0.00011097,2]
[346892062,1735344569064,500.0,0.00011371,2]
[346892063,1735344570221,500.0,0.00011645,2]
[346892064,1735344572292,500.0,9.728e-05,2]
[346892065,1735344572476,500.0,0.00010002,2]
[346892066,1735344574497,401.73469198,9.728e-05,2]
[346892067,1735344574522,125.12398611,9.728e-05,2]
[346892068,1735344575525,2258.57534166,9.73e-05,2]
[346892069,1735344575547,2181.91465834,9.73e-05,2]
[346892070,1735344576202,4389.10036784,0.00010004,2]
[346892071,1735344576225,51.38963216,0.00010004,2]
[346892072,1735344576788,928.61036784,0.00010278,2]
[346892140,1735344632511,-500.0,9.727e-05,2]
[346892141,1735344632522,-500.0,9.727e-05,2]
[346892142,1735344632531,-500.0,9.727e-05,2]
[346892143,1735344632541,-500.0,9.727e-05,2]
[346892144,1735344632550,-500.0,9.727e-05,2]
[346892145,1735344632560,-500.0,9.727e-05,2]
[346892146,1735344632570,-500.0,9.728e-05,2]
[346892147,1735344632580,-500.0,9.728e-05,2]
[346892148,1735344632592,-142.79044524,9.728e-05,2]
[346892149,1735344632604,-357.20955476,9.728e-05,2]
[346892150,1735344632613,-500.0,9.728e-05,2]
[346892151,1735344632623,-503.47595851,9.728e-05,2]
[346892152,1735344632632,-500.0,9.728e-05,2]
[346892153,1735344632642,-500.0,9.728e-05,2]
[346892154,1735344632651,-300.0,9.729e-05,2]
[346892155,1735344632661,-4031.75,9.73e-05,2]
[346892156,1735344632671,-500.0,9.73e-05,2]
[346892157,1735344632680,-500.0,9.73e-05,2]
[346892158,1735344632690,-500.0,0.00010001,2]
[346892159,1735344632699,-500.0,0.00010001,2]
[346892160,1735344632709,-631.99979714,0.00010001,2]
[346892161,1735344632718,-500.0,0.00010001,2]
[346892162,1735344632728,-500.0,0.00010001,2]
[346892163,1735344632738,-500.0,0.00010001,2]
[346892164,1735344632747,-500.0,0.00010002,2]
[346892165,1735344632757,-500.0,0.00010002,2]
[346892166,1735344632767,-500.0,0.00010002,2]
[346892167,1735344632776,-4031.75,0.00010004,2]
[346892168,1735344632786,-500.0,0.00010004,2]
[346892169,1735344632795,-500.0,0.00010004,2]
[346892170,1735344632804,-500.0,0.00010275,2]
[346892171,1735344632814,-592.57,0.00010275,2]
[346892172,1735344632823,-500.0,0.00010275,2]
[346892173,1735344632832,-500.0,0.00010275,2]
[346892174,1735344632841,-500.0,0.00010275,2]
[346892175,1735344632851,-500.0,0.00010276,2]
[346892176,1735344632861,-443.25,0.00010276,2]
[346892177,1735344632870,-4031.75,0.00010278,2]
[346892178,1735344632879,-500.0,0.00010278,2]
[346892179,1735344632889,-500.0,0.00010278,2]
[346892180,1735344632900,-500.0,0.00010531,2]
[346892181,1735344632909,-500.0,0.00010549,2]
[346892182,1735344632918,-356.16,0.00010549,2]
[346892183,1735344632928,-500.0,0.00010549,2]
[346892184,1735344632938,-500.0,0.00010549,2]
[346892185,1735344632947,-648.24871535,0.0001055,2]
[346892186,1735344632956,-4031.75,0.00010552,2]
[346892187,1735344632965,-500.0,0.00010552,2]
[346892188,1735344632975,-500.0,0.00010552,2]
[346892189,1735344632984,-420.0,0.00010702,2]
[346892190,1735344632995,-500.0,0.00010823,2]
[346892191,1735344633004,-500.0,0.00010823,2]
[346892192,1735344633014,-500.0,0.00010823,2]
[346892193,1735344633023,-4031.75,0.00010826,2]
[346892194,1735344633033,-500.0,0.00010826,2]
[346892195,1735344633042,-1000.0,0.00011079,2]
[346892196,1735344633052,-500.0,0.00011097,2]
[346892197,1735344633061,-500.0,0.00011097,2]
[346892198,1735344633070,-187.87683335,0.00011097,2]
[346892199,1735344633080,-4031.75,0.000111,2]
[346892200,1735344633090,-500.0,0.000111,2]
[346892201,1735344633100,-500.0,0.00011371,2]
[346892202,1735344633109,-500.0,0.00011371,2]
[346892203,1735344633119,-4031.75,0.00011373,2]
[346892204,1735344633128,-326.00585083,0.00011373,2]
[346892205,1735344633138,-500.0,0.00011645,2]
[346892206,1735344633148,-500.0,0.00011645,2]
[346892207,1735344633158,-4031.75,0.00011647,2]
[346892208,1735344633167,-1000.0,0.00011757,2]
[346892209,1735344633177,-587.0,0.00011772,2]
[346892210,1735344633187,-487.04507565,0.00011819,2]
[346892211,1735344633197,-2735.79,0.0001182,2]
[346892212,1735344633207,-487.04507563,0.0001182,2]
[346892213,1735344633217,-741.80000864,0.00011821,2]
[346892214,1735344633226,-487.04507563,0.00011821,2]
[346892215,1735344633238,-500.0,0.00011919,2]
[346892216,1735344633249,-500.0,0.00011919,2]
[346892217,1735344633259,-500.0,0.00011919,2]
[346892218,1735344633269,-500.0,0.00011919,2]
[346892219,1735344633278,-500.0,0.00011919,2]
[346892220,1735344633288,-500.0,0.00011919,2]
[346892221,1735344633297,-849.59,0.0001192,2]
[346892222,1735344633307,-500.0,0.0001192,2]
[346892223,1735344633317,-500.0,0.0001192,2]
[346892224,1735344633327,-1028.14,0.0001192,2]
[346892225,1735344633337,-500.0,0.0001192,2]
[346892226,1735344633347,-500.0,0.0001192,2]
[346892227,1735344633357,-500.0,0.0001192,2]
[346892228,1735344633367,-500.0,0.00011921,2]
[346892229,1735344633377,-500.0,0.00011921,2]
[346892230,1735344633387,-500.0,0.00011921,2]
[346892231,1735344633397,-1070.89,0.00011921,2]
[346892232,1735344633407,-500.0,0.00011921,2]
[346892233,1735344633417,-500.0,0.00011921,2]
[346892234,1735344633427,-4031.75,0.00011921,2]
[346892235,1735344633437,-1500.0,0.00012081,2]
[346892236,1735344633448,-2735.79,0.00012094,2]
[346892237,1735344633458,-151.0,0.00012121,2]
[346892238,1735344633468,-151.0,0.00012121,2]
[346892239,1735344633478,-151.0,0.00012121,2]
[346892240,1735344633488,-151.0,0.00012121,2]
[346892241,1735344633497,-151.0,0.00012121,2]
[346892242,1735344633507,-213.880477,0.00012121,2]
[346892243,1735344633517,-213.880477,0.00012121,2]
[346892244,1735344633527,-1134.48827319,0.00012121,2]
[346892245,1735344633537,-500.0,0.00012193,2]
[346892246,1735344633547,-500.0,0.00012193,2]
[346892247,1735344633557,-500.0,0.00012193,2]
[346892248,1735344633567,-500.0,0.00012193,2]
[346892249,1735344633577,-500.0,0.00012193,2]
[346892250,1735344633593,-500.0,0.00012193,2]
[346892251,1735344633603,-849.59,0.00012194,2]
[346892252,1735344633613,-500.0,0.00012194,2]
[346892253,1735344633623,-500.0,0.00012194,2]
[346892254,1735344633632,-1028.14,0.00012194,2]
[346892255,1735344633642,-500.0,0.00012194,2]
[346892256,1735344633651,-500.0,0.00012194,2]
[346892257,1735344633662,-500.0,0.00012194,2]
[346892258,1735344633672,-500.0,0.00012195,2]
[346892259,1735344633682,-500.0,0.00012195,2]
[346892260,1735344633691,-500.0,0.00012195,2]
[346892261,1735344633701,-1070.89,0.00012195,2]
[346892262,1735344633711,-596.33,0.00012195,2]
[346892263,1735344633721,-500.0,0.00012195,2]
[346892264,1735344633731,-4031.75,0.00012195,2]
[346892265,1735344633744,-2735.79,0.00012368,2]
[346892266,1735344633754,-500.0,0.00012467,2]
[346892267,1735344633764,-500.0,0.00012467,2]
[346892268,1735344633774,-500.0,0.00012467,2]
[346892269,1735344633784,-500.0,0.00012467,2]
[346892270,1735344633794,-500.0,0.00012467,2]
[346892271,1735344633804,-500.0,0.00012467,2]
[346892272,1735344633813,-849.59,0.00012468,2]
[346892273,1735344633823,-500.0,0.00012468,2]
[346892274,1735344633833,-500.0,0.00012468,2]
[346892275,1735344633842,-1028.14,0.00012468,2]
[346892276,1735344633852,-500.0,0.00012468,2]
[346892277,1735344633861,-500.0,0.00012468,2]
[346892278,1735344633870,-151.0,0.00012468,2]
[346892279,1735344633880,-182.262766,0.00012468,2]
[346892280,1735344633890,-500.0,0.00012468,2]
[346892281,1735344633900,-182.262766,0.00012468,2]
[346892282,1735344633909,-151.0,0.00012468,2]
[346892283,1735344633919,-151.0,0.00012468,2]
[346892284,1735344633928,-151.0,0.00012468,2]
[346892285,1735344633938,-500.0,0.00012469,2]
[346892286,1735344633948,-500.0,0.00012469,2]
[346892287,1735344633957,-500.0,0.00012469,2]
[346892288,1735344633967,-1070.89,0.00012469,2]
[346892289,1735344633976,-500.0,0.00012469,2]
[346892290,1735344633986,-4031.75,0.00012469,2]
[346892291,1735344633997,-2735.79,0.00012642,2]
[346892292,1735344634007,-500.0,0.00012741,2]
[346892293,1735344634018,-500.0,0.00012741,2]
[346892294,1735344634028,-500.0,0.00012741,2]
[346892295,1735344634039,-500.0,0.00012741,2]
[346892296,1735344634057,-500.0,0.00012741,2]
[346892297,1735344634073,-500.0,0.00012741,2]
[346892298,1735344634083,-849.59,0.00012742,2]
[346892299,1735344634093,-500.0,0.00012742,2]
[346892300,1735344634103,-500.0,0.00012742,2]
[346892301,1735344634113,-1028.14,0.00012742,2]
[346892302,1735344634123,-500.0,0.00012742,2]
[346892303,1735344634133,-500.0,0.00012742,2]
[346892304,1735344634143,-500.0,0.00012742,2]
[346892305,1735344634153,-329.42838863,0.00012743,2]
[346892306,1735344634166,-500.0,0.00012743,2]
[346892307,1735344634176,-156.12780376,0.00012743,2]
[346892308,1735344634185,-1070.89,0.00012743,2]
[346892309,1735344634195,-500.0,0.00012743,2]
[346892310,1735344634204,-4031.75,0.00012743,2]
[346892311,1735344634214,-1317.29235454,0.00012759,2]
[346892312,1735344634224,-741.80000864,0.0001278,2]
[346892313,1735344634234,-609.11230427,0.000129,2]
[346892314,1735344634246,-2735.79,0.00012916,2]
[346892315,1735344634256,-823.0,0.00012949,2]
[346892316,1735344634266,-500.0,0.00013015,2]
[346892317,1735344634276,-500.0,0.00013015,2]
[346892318,1735344634285,-500.0,0.00013015,2]
[346892319,1735344634295,-500.0,0.00013015,2]
[346892320,1735344634305,-500.0,0.00013015,2]
[346892321,1735344634315,-500.0,0.00013015,2]
[346892322,1735344634324,-849.59,0.00013016,2]
[346892323,1735344634334,-500.0,0.00013016,2]
[346892324,1735344634343,-500.0,0.00013016,2]
[346892325,1735344634352,-1028.14,0.00013016,2]
[346892326,1735344634445,-500.0,0.00013016,2]
[346892327,1735344634455,-500.0,0.00013016,2]
[346892328,1735344634465,-456.34,0.00013016,2]
[346892329,1735344634475,-168.050062,0.00013016,2]
[346892330,1735344634485,-168.050062,0.00013016,2]
[346892331,1735344634496,-533.455618,0.00013016,2]
[346892332,1735344634506,-533.455618,0.00013016,2]
[346892333,1735344634515,-151.0,0.00013016,2]
[346892334,1735344634524,-151.0,0.00013016,2]
[346892335,1735344634534,-500.0,0.00013017,2]
[346892336,1735344634543,-1070.89,0.00013017,2]
[346892337,1735344634552,-500.0,0.00013017,2]
[346892338,1735344634562,-4031.75,0.00013017,2]
[346892339,1735344634571,-2735.79,0.0001319,2]
[346892340,1735344634582,-151.0,0.00013289,2]
[346892341,1735344634593,-500.0,0.00013289,2]
[346892342,1735344634602,-151.0,0.00013289,2]
[346892343,1735344634613,-151.0,0.00013289,2]
[346892344,1735344634623,-151.0,0.00013289,2]
[346892345,1735344634633,-213.880477,0.00013289,2]
[346892346,1735344634642,-213.880477,0.00013289,2]
[346892347,1735344634652,-500.0,0.00013289,2]
[346892348,1735344634663,-500.0,0.00013289,2]
[346892349,1735344634673,-500.0,0.00013289,2]
[346892350,1735344634683,-175.9581502,0.00013289,2]
[346892351,1735344634693,-500.0,0.00013289,2]
[346892352,1735344634702,-849.59,0.0001329,2]
[346892353,1735344634712,-563.14,0.0001329,2]
[346892354,1735344634721,-500.0,0.0001329,2]
[346892355,1735344634731,-1028.14,0.0001329,2]
[346892356,1735344634740,-500.0,0.0001329,2]
[346892357,1735344634750,-500.0,0.0001329,2]
[346892358,1735344634759,-500.0,0.00013291,2]
[346892359,1735344634769,-1070.89,0.00013291,2]